[Event "GER-ch Youth U12 2020"]
[Site "Willingen"]
[Date "2020.10.28"]
[Round "2.16"]
[White "Cromm, Mika"]
[Black "Chugunov, Ivan"]
[Result "1/2-1/2"]
[ECO "A40"]
[WhiteElo "1665"]
[BlackElo "1552"]
[Annotator "NA RC"]
[PlyCount "81"]
[EventDate "2020.10.27"]
[EventType "swiss"]
[EventRounds "7"]
[EventCountry "GER"]
[SourceTitle "playchess.com"]
[Source "ChessBase"]
[SourceQuality "1"]
[TimeControl "40/5400+30:1800+30"]

1. d4 {[%emt 0:00:00]} c6 {[%emt 0:00:00]} 2. c4 {[%emt 0:00:00]} d5 {[%emt 0:00:00]} 3. Nc3 {[%emt 0:00:16]} Nf6 {[%emt 0:00:07]} 4. Bf4 {[%emt 0:00:17]} Bf5 {[%emt 0:00:51]} 5. e3 {[%emt 0:01:13]} e6 {[%emt 0:00:56]} 6. Nf3 {[%emt 0:00:44]} Nbd7 {[%emt 0:00:39]} 7. Bd3 {[%emt 0:01:31]} Bg6 {[%emt 0:00:59]} 8. O-O {[%emt 0:01:09]} Be7 {[%emt 0:00:21]} 9. Rc1 {[%emt 0:03:56]} a6 {[%emt 0:01:30]} 10. a4 {[%emt 0:06:39]} O-O {[%emt 0:02:26]} 11. cxd5 {[%emt 0:04:19]} cxd5 {[%emt 0:01:32]} 12. Bxg6 {[%emt 0:01:34]} hxg6 {[%emt 0:00:50]} 13. Qb3 {[%emt 0:16:44]} b6 {[%emt 0:02:11]} 14. Ne2 {[%emt 0:01:34]} Ra7 {[%emt 0:01:44]} 15. Rc6 {[%emt 0:03:05]} Nh5 {[%emt 0:01:17]} 16. Rfc1 {[%emt 0:00:54]} Nxf4 {[%emt 0:00:23]} 17. Nxf4 {[%emt 0:00:40]} Rb7 {[%emt 0:01:13]} 18. Nd3 {[%emt 0:05:36]} Nb8 {[%emt 0:04:15]} 19. R6c3 {[%emt 0:02:19]} a5 {[%emt 0:02:36]} 20. Nfe5 {[%emt 0:02:04]} Bd6 {[%emt 0:01:13]} 21. Nc6 {[%emt 0:03:59]} Nxc6 {[%emt 0:00:41]} 22. Rxc6 {[%emt 0:00:26]} Kh7 {[%emt 0:06:11]} 23. h3 {[%emt 0:02:15]} Re8 {[%emt 0:01:23]} 24. Qc2 {[%emt 0:06:24]} Ree7 {[%emt 0:01:59]} 25. f4 {[%emt 0:04:26]} f6 {[%emt 0:01:44]} 26. Qf2 {[%emt 0:01:13]} Rec7 {[%emt 0:00:53]} 27. R6c3 {[%emt 0:03:18]} Rxc3 {[%emt 0:00:51]} 28. Rxc3 {[%emt 0:01:03]} Rc7 {[%emt 0:00:12]} 29. Qc2 {[%emt 0:00:18]} Qc8 {[%emt 0:00:24]} 30. Rxc7 {[%emt 0:00:19]} Qxc7 {[%emt 0:00:15]} 31. Qxc7 {[%emt 0:00:10]} Bxc7 {[%emt 0:00:12]} 32. Kf2 {[%emt 0:00:26]} Kh6 {[%emt 0:02:01]} 33. Kf3 {[%emt 0:04:38]} g5 {[%emt 0:00:45]} 34. g4 {[%emt 0:00:31]} Bd6 {[%emt 0:01:37]} 35. Kg3 {[%emt 0:01:12]} gxf4+ {[%emt 0:00:38]} 36. exf4 {[%emt 0:00:35]} g5 {[%emt 0:00:44]} 37. h4 {[%emt 0:01:32]} gxh4+ {[%emt 0:02:10]} 38. Kxh4 {[%emt 0:00:09]} Kg6 {[%emt 0:00:10]} 39. Kg3 {[%emt 0:02:20]} Bc7 {[%emt 0:05:45]} 40. Kf3 {[%emt 0:03:18]} Bd6 {[%emt 0:02:19]} 41. Kg3 1/2-1/2

[Event "GER-ch Youth U12 2020"]
[Site "Willingen"]
[Date "2020.10.28"]
[Round "2.17"]
[White "Haubold, Sebastian Marcel"]
[Black "Dorendorf, Mika"]
[Result "1-0"]
[ECO "B33"]
[WhiteElo "1769"]
[BlackElo "1462"]
[Annotator "NA RC"]
[PlyCount "43"]
[EventDate "2020.10.27"]
[EventType "swiss"]
[EventRounds "7"]
[EventCountry "GER"]
[SourceTitle "playchess.com"]
[Source "ChessBase"]
[SourceQuality "1"]
[TimeControl "40/5400+30:1800+30"]

1. e4 {[%emt 0:00:00]} c5 {[%emt 0:00:00]} 2. Nf3 {[%emt 0:00:00]} Nc6 {[%emt 0:00:00]} 3. d4 {[%emt 0:00:00]} cxd4 {[%emt 0:00:04]} 4. Nxd4 {[%emt 0:00:05]} Nf6 {[%emt 0:00:12]} 5. Nc3 {[%emt 0:00:44]} e5 {[%emt 0:01:04]} 6. Ndb5 {[%emt 0:00:57]} d6 {[%emt 0:00:05]} 7. Bg5 {[%emt 0:01:28]} a6 {[%emt 0:00:25]} 8. Na3 {[%emt 0:06:42]} b5 {[%emt 0:00:08]} 9. Nd5 {[%emt 0:00:17]} Be7 {[%emt 0:02:19]} 10. Bxf6 {[%emt 0:01:35]} Bxf6 {[%emt 0:01:07]} 11. c3 {[%emt 0:00:09]} O-O {[%emt 0:00:12]} 12. Nc2 {[%emt 0:00:19]} Bg5 {[%emt 0:00:17]} 13. a4 {[%emt 0:00:17]} bxa4 {[%emt 0:00:15]} 14. Rxa4 {[%emt 0:00:10]} a5 {[%emt 0:00:01]} 15. Bc4 {[%emt 0:02:26]} Kh8 {[%emt 0:01:13]} 16. O-O {[%emt 0:06:06]} f5 {[%emt 0:00:47]} 17. exf5 {[%emt 0:01:45]} Bxf5 {[%emt 0:01:36]} 18. Nce3 {[%emt 0:01:26]} Bg6 {[%emt 0:04:32]} 19. Bd3 {[%emt 0:08:36]} e4 {[%emt 0:02:24]} 20. Bxe4 {[%emt 0:00:37]} Bxe4 {[%emt 0:01:03]} 21. Rxe4 {[%emt 0:00:06]} Ne5 {[%emt 0:00:59]} 22. f4 {[%emt 0:00:21]} 1-0

[Event "GER-ch Youth U12 2020"]
[Site "Willingen"]
[Date "2020.10.28"]
[Round "2.18"]
[White "Leubner, Paul Damdin"]
[Black "Möller, Maurin"]
[Result "1/2-1/2"]
[ECO "C24"]
[WhiteElo "1409"]
[BlackElo "1645"]
[Annotator "NA RC"]
[PlyCount "91"]
[EventDate "2020.10.27"]
[EventType "swiss"]
[EventRounds "7"]
[EventCountry "GER"]
[SourceTitle "playchess.com"]
[Source "ChessBase"]
[SourceQuality "1"]
[TimeControl "40/5400+30:1800+30"]

1. e4 {[%emt 0:00:00]} e5 {[%emt 0:00:00]} 2. Bc4 {[%emt 0:00:00]} Nf6 {[%emt 0:00:03]} 3. d3 {[%emt 0:00:00]} Bc5 {[%emt 0:02:32]} 4. Nf3 {[%emt 0:00:53]} d6 {[%emt 0:01:23]} 5. Nbd2 {[%emt 0:00:54]} O-O {[%emt 0:01:16]} 6. c3 {[%emt 0:02:23]} Re8 {[%emt 0:01:05]} 7. b4 {[%emt 0:02:05]} Bb6 {[%emt 0:00:11]} 8. Bb3 {[%emt 0:01:03]} d5 {[%emt 0:00:21]} 9. exd5 {[%emt 0:04:12]} Nxd5 {[%emt 0:00:21]} 10. Qc2 {[%emt 0:01:55]} Nf4 {[%emt 0:00:17]} 11. O-O {[%emt 0:05:12]} Qxd3 {[%emt 0:00:42]} 12. Ne4 {[%emt 0:05:36]} Qxc2 {[%emt 0:03:31]} 13. Bxc2 {[%emt 0:00:18]} Ne2+ {[%emt 0:00:29]} 14. Kh1 {[%emt 0:00:52]} Nxc1 {[%emt 0:00:14]} 15. Raxc1 {[%emt 0:00:46]} Be6 {[%emt 0:03:30]} 16. a4 {[%emt 0:04:13]} Bc4 {[%emt 0:01:43]} 17. Rfd1 {[%emt 0:03:20]} Be2 {[%emt 0:00:32]} 18. Rd2 {[%emt 0:02:54]} Bxf3 {[%emt 0:00:09]} 19. gxf3 {[%emt 0:00:20]} a6 {[%emt 0:02:30]} 20. a5 {[%emt 0:01:18]} Ba7 {[%emt 0:00:09]} 21. Rg1 {[%emt 0:01:09]} Kh8 {[%emt 0:07:59]} 22. Ng5 {[%emt 0:02:10]} Nc6 {[%emt 0:00:32]} 23. Nxf7+ {[%emt 0:04:17]} Kg8 {[%emt 0:00:07]} 24. Bb3 {[%emt 0:01:12]} Kf8 {[%emt 0:00:50]} 25. Ng5 {[%emt 0:08:09]} g6 {[%emt 0:05:18]} 26. Ne6+ {[%emt 0:04:14]} Ke7 {[%emt 0:00:00]} 27. Nxc7 {[%emt 0:02:37]} Rad8 {[%emt 0:00:34]} 28. Rgd1 {[%emt 0:02:52]} Rxd2 {[%emt 0:02:27]} 29. Rxd2 {[%emt 0:01:14]} Rf8 {[%emt 0:03:27]} 30. Kg2 {[%emt 0:01:30]} Bb8 {[%emt 0:00:38]} 31. Ne6 {[%emt 0:01:30]} Rc8 {[%emt 0:03:06]} 32. Nc5 {[%emt 0:07:09]} Rc7 {[%emt 0:00:29]} 33. Ne4 {[%emt 0:04:07]} Rc8 {[%emt 0:00:24]} 34. Ba4 {[%emt 0:01:56]} h6 {[%emt 0:01:49]} 35. Nc5 {[%emt 0:02:34]} Rc7 {[%emt 0:02:50]} 36. Rd3 {[%emt 0:01:34]} Ba7 {[%emt 0:13:49]} 37. Bxc6 {[%emt 0:07:03]} Bxc5 {[%emt 0:00:10]} 38. Be4 {[%emt 0:00:45]} Bd6 {[%emt 0:01:22]} 39. Bxg6 {[%emt 0:01:16]} Rc8 {[%emt 0:02:32]} 40. Be4 {[%emt 0:01:40]} Rc7 {[%emt 0:00:40]} 41. Kf1 {[%emt 0:31:01]} Ke6 {[%emt 0:31:24]} 42. h4 {[%emt 0:03:31]} Be7 {[%emt 0:00:13]} 43. h5 {[%emt 0:00:21]} Bg5 {[%emt 0:01:12]} 44. Ke2 {[%emt 0:00:46]} Bf6 {[%emt 0:01:29]} 45. Kd1 {[%emt 0:01:01]} Bh4 {[%emt 0:00:50]} 46. Ke2 {[%emt 0:03:05]} 1/2-1/2

[Event "GER-ch Youth U12 2020"]
[Site "Willingen"]
[Date "2020.10.28"]
[Round "2.20"]
[White "Krüger, Arthur"]
[Black "Schneble, Milan"]
[Result "1-0"]
[ECO "B09"]
[WhiteElo "1704"]
[BlackElo "1418"]
[Annotator "NA RC"]
[PlyCount "69"]
[EventDate "2020.10.27"]
[EventType "swiss"]
[EventRounds "7"]
[EventCountry "GER"]
[SourceTitle "playchess.com"]
[Source "ChessBase"]
[SourceQuality "1"]
[TimeControl "40/5400+30:1800+30"]

1. e4 {[%emt 0:00:00]} d6 {[%emt 0:00:00]} 2. d4 {[%emt 0:00:29]} Nf6 {[%emt 0:00:05]} 3. Nc3 {[%emt 0:00:14]} g6 {[%emt 0:00:30]} 4. f4 {[%emt 0:01:03]} Bg7 {[%emt 0:00:59]} 5. Nf3 {[%emt 0:00:58]} c5 {[%emt 0:02:48]} 6. d5 {[%emt 0:02:34]} O-O {[%emt 0:00:51]} 7. Be2 {[%emt 0:02:35]} Re8 {[%emt 0:08:05]} 8. O-O {[%emt 0:01:25]} Nbd7 {[%emt 0:06:07]} 9. h3 {[%emt 0:03:12]} a6 {[%emt 0:10:44]} 10. a4 {[%emt 0:01:21]} Qa5 {[%emt 0:03:11]} 11. Bd2 {[%emt 0:01:31]} Qc7 {[%emt 0:05:02]} 12. a5 {[%emt 0:03:11]} b5 {[%emt 0:12:28]} 13. axb6 {[%emt 0:02:15]} Nxb6 {[%emt 0:03:04]} 14. Be1 {[%emt 0:07:27]} Bb7 {[%emt 0:07:23]} 15. Bg3 {[%emt 0:03:06]} e6 {[%emt 0:06:48]} 16. dxe6 {[%emt 0:03:50]} fxe6 {[%emt 0:03:40]} 17. Nd2 {[%emt 0:08:34]} Kh8 {[%emt 0:07:46]} 18. Bf3 {[%emt 0:03:17]} Re7 {[%emt 0:04:55]} 19. Qe2 {[%emt 0:02:56]} c4 {[%emt 0:03:55]} 20. Bf2 {[%emt 0:03:44]} Rc8 {[%emt 0:03:10]} 21. Kh1 {[%emt 0:01:28]} Nbd7 {[%emt 0:01:30]} 22. Ra4 {[%emt 0:01:58]} Nb6 {[%emt 0:03:29]} 23. Bxb6 {[%emt 0:02:25]} Qxb6 {[%emt 0:00:09]} 24. Nxc4 {[%emt 0:00:26]} Qc7 {[%emt 0:01:48]} 25. Na5 {[%emt 0:05:52]} e5 {[%emt 0:02:00]} 26. fxe5 {[%emt 0:01:53]} Rxe5 {[%emt 0:00:50]} 27. Nxb7 {[%emt 0:00:42]} Qxb7 {[%emt 0:00:12]} 28. Qxa6 {[%emt 0:00:29]} Qd7 {[%emt 0:01:20]} 29. Rd1 {[%emt 0:05:57]} Rc6 {[%emt 0:01:08]} 30. Qa7 {[%emt 0:02:45]} Rc7 {[%emt 0:00:29]} 31. Qb8+ {[%emt 0:00:44]} Re8 {[%emt 0:00:32]} 32. Qb4 {[%emt 0:00:28]} Bf8 {[%emt 0:00:30]} 33. Qd4 {[%emt 0:00:56]} Be7 {[%emt 0:00:30]} 34. Nd5 {[%emt 0:00:39]} Rxc2 {[%emt 0:00:31]} 35. Nxf6 1-0

[Event "GER-ch Youth U12 2020"]
[Site "Willingen"]
[Date "2020.10.28"]
[Round "2.21"]
[White "Honisch, Alexander"]
[Black "Ehrlich, Patrick"]
[Result "1-0"]
[ECO "B07"]
[WhiteElo "1667"]
[BlackElo "1448"]
[Annotator "NA RC"]
[PlyCount "57"]
[EventDate "2020.10.27"]
[EventType "swiss"]
[EventRounds "7"]
[EventCountry "GER"]
[SourceTitle "playchess.com"]
[Source "ChessBase"]
[SourceQuality "1"]
[TimeControl "40/5400+30:1800+30"]

1. e4 {[%emt 0:00:00]} d6 2. d4 Nf6 {[%emt 0:00:37]} 3. Nc3 {[%emt 0:00:42]} g6 {[%emt 0:00:07]} 4. Be3 {[%emt 0:00:43]} c6 {[%emt 0:00:07]} 5. Qd2 {[%emt 0:07:45]} b5 {[%emt 0:00:10]} 6. f3 {[%emt 0:01:05]} Nbd7 {[%emt 0:00:11]} 7. h4 {[%emt 0:09:59]} Nb6 {[%emt 0:01:08]} 8. a3 {[%emt 0:03:59]} a5 {[%emt 0:02:52]} 9. Rd1 {[%emt 0:13:35]} b4 {[%emt 0:04:13]} 10. Nb1 {[%emt 0:02:22]} bxa3 {[%emt 0:02:57]} 11. Nxa3 {[%emt 0:01:28]} Ba6 {[%emt 0:01:03]} 12. Bxa6 {[%emt 0:03:22]} Rxa6 {[%emt 0:00:12]} 13. Nh3 {[%emt 0:01:02]} d5 {[%emt 0:10:37]} 14. e5 {[%emt 0:04:28]} Nfd7 {[%emt 0:01:45]} 15. Nf4 {[%emt 0:07:17]} e6 {[%emt 0:03:37]} 16. Qe2 {[%emt 0:03:24]} Ra7 {[%emt 0:04:06]} 17. h5 {[%emt 0:02:23]} Qg5 {[%emt 0:09:54]} 18. Nxg6 {[%emt 0:05:51]} Qg3+ {[%emt 0:01:01]} 19. Bf2 Qxg2 20. Rg1 {[%emt 0:01:08]} Qh2 {[%emt 0:06:55]} 21. Nxh8 {[%emt 0:00:30]} Qxh5 {[%emt 0:02:05]} 22. f4 {[%emt 0:01:51]} Qh2 {[%emt 0:06:14]} 23. Be3 {[%emt 0:02:26]} Qh4+ {[%emt 0:02:00]} 24. Qf2 {[%emt 0:03:10]} Qh5 {[%emt 0:05:05]} 25. Rg5 {[%emt 0:04:02]} Qh1+ {[%emt 0:02:02]} 26. Ke2 {[%emt 0:01:10]} Qh3 {[%emt 0:02:15]} 27. Qg2 {[%emt 0:01:36]} Qxg2+ {[%emt 0:02:38]} 28. Rxg2 {[%emt 0:00:16]} Bh6 {[%emt 0:00:53]} 29. Rh1 {[%emt 0:00:44]} 1-0

[Event "GER-ch Youth U12 2020"]
[Site "Willingen"]
[Date "2020.10.28"]
[Round "2.22"]
[White "Weyerer, Noah"]
[Black "Schwarz, David"]
[Result "1-0"]
[ECO "D00"]
[WhiteElo "1536"]
[BlackElo "1200"]
[Annotator "NA RC"]
[PlyCount "45"]
[EventDate "2020.10.27"]
[EventType "swiss"]
[EventRounds "7"]
[EventCountry "GER"]
[SourceTitle "playchess.com"]
[Source "ChessBase"]
[SourceQuality "1"]
[TimeControl "40/5400+30:1800+30"]

1. d4 {[%emt 0:00:00]} d5 {[%emt 0:00:00]} 2. Bf4 {[%emt 0:00:00]} c5 {[%emt 0:00:00]} 3. e3 {[%emt 0:01:06]} Nc6 {[%emt 0:01:57]} 4. c3 {[%emt 0:02:14]} e6 {[%emt 0:02:45]} 5. Nf3 {[%emt 0:00:55]} Nf6 {[%emt 0:02:38]} 6. Nbd2 {[%emt 0:00:27]} Bd7 {[%emt 0:01:54]} 7. Bd3 {[%emt 0:00:40]} Be7 {[%emt 0:02:27]} 8. Ne5 {[%emt 0:02:10]} Qb6 {[%emt 0:11:43]} 9. Qc2 {[%emt 0:06:57]} cxd4 {[%emt 0:09:44]} 10. exd4 {[%emt 0:01:16]} Rc8 {[%emt 0:01:32]} 11. Qb3 {[%emt 0:03:23]} Qxb3 {[%emt 0:09:06]} 12. axb3 {[%emt 0:01:03]} a6 {[%emt 0:01:04]} 13. b4 {[%emt 0:02:16]} Bxb4 {[%emt 0:04:25]} 14. Nxc6 {[%emt 0:07:38]} Bxc3 {[%emt 0:01:18]} 15. bxc3 {[%emt 0:01:24]} Rxc6 {[%emt 0:00:29]} 16. Ra3 {[%emt 0:02:51]} Ke7 {[%emt 0:02:26]} 17. Nf3 {[%emt 0:02:16]} Rhc8 {[%emt 0:05:01]} 18. Kd2 {[%emt 0:02:29]} Rb6 {[%emt 0:02:01]} 19. Rb1 {[%emt 0:02:33]} Rcc6 {[%emt 0:02:05]} 20. Ne5 {[%emt 0:02:47]} Rd6 {[%emt 0:02:54]} 21. Nxd7 {[%emt 0:04:13]} Rxb1 {[%emt 0:02:41]} 22. Bxd6+ {[%emt 0:00:11]} Kxd6 {[%emt 0:00:06]} 23. Bxb1 {[%emt 0:00:09]} 1-0

[Event "GER-ch Youth U12 2020"]
[Site "Willingen"]
[Date "2020.10.28"]
[Round "2.23"]
[White "Berresheim, Nils"]
[Black "Stadelmann, Constantin"]
[Result "1-0"]
[ECO "D31"]
[WhiteElo "1534"]
[BlackElo "1366"]
[Annotator "NA RC"]
[PlyCount "49"]
[EventDate "2020.10.27"]
[EventType "swiss"]
[EventRounds "7"]
[EventCountry "GER"]
[SourceTitle "playchess.com"]
[Source "ChessBase"]
[SourceQuality "1"]
[TimeControl "40/5400+30:1800+30"]

1. d4 {[%emt 0:00:00]} d5 {[%emt 0:00:00]} 2. c4 {[%emt 0:00:00]} e6 {[%emt 0:00:00]} 3. Nc3 {[%emt 0:00:00]} c6 {[%emt 0:00:12]} 4. Nf3 {[%emt 0:00:27]} f5 {[%emt 0:00:10]} 5. Bf4 {[%emt 0:00:43]} Nf6 {[%emt 0:00:17]} 6. e3 {[%emt 0:00:45]} Bd6 {[%emt 0:00:11]} 7. Bd3 {[%emt 0:00:51]} O-O {[%emt 0:00:11]} 8. O-O {[%emt 0:00:39]} Ne4 {[%emt 0:00:14]} 9. Qc2 {[%emt 0:02:27]} Nd7 {[%emt 0:00:59]} 10. Ne2 {[%emt 0:02:54]} b6 {[%emt 0:00:36]} 11. h3 {[%emt 0:03:06]} Ba6 {[%emt 0:01:35]} 12. Rfd1 {[%emt 0:02:31]} Qc7 {[%emt 0:06:31]} 13. Rac1 {[%emt 0:02:44]} Ndf6 {[%emt 0:01:52]} 14. Ne5 {[%emt 0:02:16]} c5 {[%emt 0:02:24]} 15. f3 {[%emt 0:05:30]} dxc4 {[%emt 0:04:46]} 16. Bxc4 {[%emt 0:02:16]} Bxc4 {[%emt 0:02:57]} 17. Qxc4 {[%emt 0:03:52]} b5 {[%emt 0:03:45]} 18. Qxe6+ {[%emt 0:03:01]} Kh8 {[%emt 0:00:57]} 19. fxe4 {[%emt 0:01:00]} Nxe4 {[%emt 0:00:39]} 20. dxc5 {[%emt 0:02:38]} Rae8 {[%emt 0:01:20]} 21. cxd6 {[%emt 0:04:50]} Qxc1 {[%emt 0:03:43]} 22. Nf7+ {[%emt 0:01:15]} Kg8 {[%emt 0:02:18]} 23. Nh6+ {[%emt 0:00:09]} Kh8 {[%emt 0:00:19]} 24. Qg8+ {[%emt 0:00:06]} Rxg8 {[%emt 0:00:25]} 25. Nf7# {[%emt 0:00:04]} 1-0

[Event "GER-ch Youth U12 2020"]
[Site "Willingen"]
[Date "2020.10.28"]
[Round "2.25"]
[White "Göpfert, Gregor"]
[Black "Schröder, Jan-Hendrik"]
[Result "0-1"]
[ECO "B34"]
[WhiteElo "1603"]
[BlackElo "1324"]
[Annotator "NA RC"]
[PlyCount "76"]
[EventDate "2020.10.27"]
[EventType "swiss"]
[EventRounds "7"]
[EventCountry "GER"]
[SourceTitle "playchess.com"]
[Source "ChessBase"]
[SourceQuality "1"]
[TimeControl "40/5400+30:1800+30"]

1. e4 {[%emt 0:00:00]} c5 {[%emt 0:00:00]} 2. Nf3 {[%emt 0:00:00]} Nc6 {[%emt 0:00:00]} 3. d4 {[%emt 0:00:00]} cxd4 {[%emt 0:00:00]} 4. Nxd4 {[%emt 0:00:00]} g6 {[%emt 0:00:00]} 5. Nc3 {[%emt 0:01:28]} Bg7 {[%emt 0:00:02]} 6. Be3 {[%emt 0:01:09]} d6 {[%emt 0:00:17]} 7. Bc4 {[%emt 0:00:53]} Nf6 {[%emt 0:00:19]} 8. h3 {[%emt 0:00:23]} O-O {[%emt 0:00:19]} 9. Bb3 {[%emt 0:01:12]} Bd7 {[%emt 0:01:04]} 10. O-O {[%emt 0:00:20]} a6 {[%emt 0:01:10]} 11. f4 {[%emt 0:01:15]} Nxd4 {[%emt 0:01:44]} 12. Bxd4 {[%emt 0:00:11]} Bc6 {[%emt 0:00:30]} 13. Qd3 {[%emt 0:01:12]} d5 {[%emt 0:07:18]} 14. exd5 {[%emt 0:07:41]} Bd7 {[%emt 0:10:59]} 15. Rae1 {[%emt 0:04:39]} h5 {[%emt 0:06:16]} 16. Qe3 {[%emt 0:04:18]} Re8 {[%emt 0:01:54]} 17. a4 {[%emt 0:16:24]} Bf5 {[%emt 0:02:42]} 18. Bc5 {[%emt 0:08:44]} Qc7 {[%emt 0:04:32]} 19. Bb6 {[%emt 0:06:55]} Qd6 {[%emt 0:01:43]} 20. a5 {[%emt 0:01:33]} Rac8 {[%emt 0:00:56]} 21. Ba4 {[%emt 0:01:28]} Rxc3 {[%emt 0:08:02]} 22. bxc3 {[%emt 0:06:03]} Nxd5 {[%emt 0:00:11]} 23. Qf3 {[%emt 0:05:26]} Rc8 {[%emt 0:00:53]} 24. Rd1 {[%emt 0:02:26]} e6 {[%emt 0:00:10]} 25. Bd4 {[%emt 0:04:54]} Bxd4+ {[%emt 0:06:22]} 26. cxd4 {[%emt 0:00:19]} Rc3 {[%emt 0:04:47]} 27. Qf2 {[%emt 0:00:58]} Ne3 {[%emt 0:01:01]} 28. Rd2 {[%emt 0:01:36]} Nxf1 {[%emt 0:00:19]} 29. Qxf1 {[%emt 0:00:28]} Qb4 {[%emt 0:01:45]} 30. Bd7 {[%emt 0:01:52]} Rxc2 {[%emt 0:01:04]} 31. Rxc2 {[%emt 0:00:34]} Bxc2 {[%emt 0:00:02]} 32. Qf2 {[%emt 0:00:49]} Ba4 {[%emt 0:01:08]} 33. Bc8 {[%emt 0:01:30]} Bc6 {[%emt 0:00:22]} 34. Qa2 {[%emt 0:00:57]} Qxd4+ {[%emt 0:00:27]} 35. Kh1 {[%emt 0:00:16]} Qd8 {[%emt 0:00:20]} 36. Bxe6 {[%emt 0:00:25]} fxe6 {[%emt 0:00:07]} 37. Qxe6+ {[%emt 0:00:09]} Kg7 {[%emt 0:00:13]} 38. Qe5+ {[%emt 0:00:19]} Kh7 {[%emt 0:00:52]} 0-1

[Event "GER-ch Youth U12 2020"]
[Site "Willingen"]
[Date "2020.10.28"]
[Round "2.27"]
[White "Werner, Florin"]
[Black "Detjen, Mattes"]
[Result "1-0"]
[ECO "C96"]
[WhiteElo "1481"]
[BlackElo "1190"]
[Annotator "NA RC"]
[PlyCount "53"]
[EventDate "2020.10.27"]
[EventType "swiss"]
[EventRounds "7"]
[EventCountry "GER"]
[SourceTitle "playchess.com"]
[Source "ChessBase"]
[SourceQuality "1"]
[TimeControl "40/5400+30:1800+30"]

1. e4 {[%emt 0:00:00]} e5 {[%emt 0:00:00]} 2. Nf3 {[%emt 0:00:00]} Nc6 {[%emt 0:00:14]} 3. Bb5 {[%emt 0:00:07]} a6 {[%emt 0:00:12]} 4. Ba4 {[%emt 0:00:07]} Nf6 {[%emt 0:00:35]} 5. O-O {[%emt 0:00:27]} Be7 {[%emt 0:01:50]} 6. Re1 {[%emt 0:00:33]} b5 {[%emt 0:01:27]} 7. Bb3 {[%emt 0:00:44]} O-O {[%emt 0:01:10]} 8. c3 {[%emt 0:00:58]} Na5 {[%emt 0:04:11]} 9. Bc2 {[%emt 0:00:11]} d6 {[%emt 0:02:40]} 10. h3 {[%emt 0:03:06]} Bb7 {[%emt 0:02:39]} 11. d4 {[%emt 0:03:41]} c6 {[%emt 0:04:27]} 12. Nbd2 {[%emt 0:01:11]} Qc7 {[%emt 0:02:25]} 13. Nf1 {[%emt 0:04:04]} Rad8 {[%emt 0:02:54]} 14. Ng3 {[%emt 0:00:30]} h6 {[%emt 0:03:35]} 15. Nh4 {[%emt 0:30:15]} d5 {[%emt 0:03:01]} 16. Nhf5 {[%emt 0:01:46]} dxe4 {[%emt 0:03:54]} 17. Bxe4 {[%emt 0:00:42]} Nxe4 {[%emt 0:04:31]} 18. Nxe4 {[%emt 0:00:07]} Qd7 {[%emt 0:03:03]} 19. Qg4 {[%emt 0:00:56]} g6 {[%emt 0:04:03]} 20. Nxh6+ {[%emt 0:00:47]} Kh7 {[%emt 0:01:22]} 21. Qxd7 {[%emt 0:06:24]} Rxd7 {[%emt 0:00:03]} 22. dxe5 {[%emt 0:00:17]} Nc4 {[%emt 0:01:14]} 23. Ng4 {[%emt 0:01:51]} f5 {[%emt 0:02:07]} 24. exf6 {[%emt 0:00:11]} Bd6 {[%emt 0:03:34]} 25. Bh6 {[%emt 0:00:30]} Rfd8 {[%emt 0:01:03]} 26. Ng5+ {[%emt 0:00:53]} Kg8 {[%emt 0:02:47]} 27. Bg7 1-0

[Event "GER-ch Youth U12 2020"]
[Site "Willingen"]
[Date "2020.10.28"]
[Round "2.28"]
[White "Bondarcuks, Timurs"]
[Black "Brandstrup, Luca Alexander"]
[Result "0-1"]
[ECO "A22"]
[WhiteElo "1198"]
[BlackElo "1575"]
[Annotator "NA RC"]
[PlyCount "76"]
[EventDate "2020.10.27"]
[EventType "swiss"]
[EventRounds "7"]
[EventCountry "GER"]
[SourceTitle "playchess.com"]
[Source "ChessBase"]
[SourceQuality "1"]
[TimeControl "40/5400+30:1800+30"]

1. c4 {[%emt 0:00:00]} e5 {[%emt 0:00:00]} 2. Nc3 {[%emt 0:00:00]} Nf6 {[%emt 0:01:07]} 3. g3 {[%emt 0:00:12]} d5 {[%emt 0:06:35]} 4. e3 {[%emt 0:02:31]} d4 {[%emt 0:02:25]} 5. exd4 {[%emt 0:00:43]} exd4 {[%emt 0:00:23]} 6. Nb5 {[%emt 0:03:57]} a6 {[%emt 0:00:40]} 7. Na3 {[%emt 0:00:37]} c5 {[%emt 0:03:06]} 8. d3 {[%emt 0:00:51]} Bd6 {[%emt 0:02:50]} 9. Bg2 {[%emt 0:01:16]} O-O {[%emt 0:00:34]} 10. Ne2 {[%emt 0:00:23]} Nc6 {[%emt 0:01:17]} 11. O-O {[%emt 0:01:03]} Bf5 {[%emt 0:01:20]} 12. Bf4 {[%emt 0:07:22]} Rb8 {[%emt 0:07:35]} 13. Nc2 {[%emt 0:01:39]} Ne5 {[%emt 0:01:31]} 14. Bxe5 {[%emt 0:03:24]} Bxe5 {[%emt 0:00:09]} 15. b4 {[%emt 0:01:36]} b6 {[%emt 0:01:28]} 16. Re1 {[%emt 0:03:02]} Qd7 {[%emt 0:06:33]} 17. Nc3 {[%emt 0:04:25]} Bxg3 {[%emt 0:05:24]} 18. fxg3 {[%emt 0:02:53]} dxc3 {[%emt 0:00:24]} 19. Ne3 {[%emt 0:00:23]} cxb4 {[%emt 0:01:57]} 20. Nxf5 {[%emt 0:01:43]} Qxf5 {[%emt 0:00:14]} 21. Rf1 {[%emt 0:03:45]} Qc5+ {[%emt 0:01:06]} 22. Kh1 {[%emt 0:00:22]} Rbd8 {[%emt 0:02:13]} 23. Rf3 {[%emt 0:09:59]} Ng4 {[%emt 0:02:15]} 24. Qf1 {[%emt 0:02:31]} Ne3 {[%emt 0:01:13]} 25. Qe2 {[%emt 0:00:57]} Nxg2 {[%emt 0:02:53]} 26. Qxg2 {[%emt 0:00:25]} Qd4 {[%emt 0:08:36]} 27. Re1 {[%emt 0:01:30]} Rfe8 {[%emt 0:01:01]} 28. Ref1 {[%emt 0:01:04]} f6 {[%emt 0:01:37]} 29. Qh3 {[%emt 0:03:14]} Re3 {[%emt 0:01:34]} 30. Rf5 {[%emt 0:01:28]} Qxd3 {[%emt 0:01:04]} 31. Rd5 {[%emt 0:00:16]} Rxd5 {[%emt 0:00:40]} 32. cxd5 {[%emt 0:00:10]} Qxd5+ {[%emt 0:00:13]} 33. Qg2 {[%emt 0:00:48]} Qxg2+ {[%emt 0:00:00]} 34. Kxg2 {[%emt 0:00:15]} Re2+ {[%emt 0:00:00]} 35. Kh3 {[%emt 0:00:39]} Rxa2 {[%emt 0:00:00]} 36. Re1 {[%emt 0:00:11]} Kf7 {[%emt 0:00:00]} 37. Rd1 {[%emt 0:00:12]} Rd2 {[%emt 0:00:00]} 38. Rc1 {[%emt 0:01:26]} c2 0-1